[Event "Titled Tuesday Blitz April 18 Late 2023"]
[White "EsmeraldasAnderson03"]
[Black "Hajiyev, Kanan"]
[BlackFideId "13404148"]
[WhiteElo "2390"]
[BlackElo "2103"]
[Result "0-1"]
[Round "09"]
[TimeControl "180+2"]
[Date "2023.04.18"]
[WhiteClock "0:01:07"]
[BlackClock "0:01:56"]

1. d4 {[%clk 0:03:00]}  Nf6 {[%clk 0:02:58]} 2. c4 {[%clk 0:03:00]}  e6 {[%clk 0:02:59]} 3. Nf3 {[%clk 0:03:00]}  c5 {[%clk 0:02:58]} 4. e3 {[%clk 0:02:59]}  cxd4 {[%clk 0:02:57]} 5. exd4 {[%clk 0:03:00]}  d5 {[%clk 0:02:56]} 6. Nc3 {[%clk 0:02:59]}  Bb4 {[%clk 0:02:55]} 7. Qc2 {[%clk 0:02:56]}  O-O {[%clk 0:02:53]} 8. h3 {[%clk 0:02:53]}  b6 {[%clk 0:02:51]} 9. cxd5 {[%clk 0:02:51]}  Nxd5 {[%clk 0:02:51]} 10. Bd2 {[%clk 0:02:49]}  Bb7 {[%clk 0:02:50]} 11. Bd3 {[%clk 0:02:48]}  Nf6 {[%clk 0:02:45]} 12. Ne4 {[%clk 0:02:42]}  Bxd2+ {[%clk 0:02:39]} 13. Nexd2 {[%clk 0:02:33]}  Nc6 {[%clk 0:02:39]} 14. Nb3 {[%clk 0:01:47]}  Nb4 {[%clk 0:02:37]} 15. Qe2 {[%clk 0:01:47]}  Nxd3+ {[%clk 0:02:33]} 16. Qxd3 {[%clk 0:01:47]}  a5 {[%clk 0:02:31]} 17. Nbd2 {[%clk 0:01:40]}  Ba6 {[%clk 0:02:29]} 18. Qe3 {[%clk 0:01:33]}  Nd5 {[%clk 0:02:27]} 19. Qe5 {[%clk 0:01:27]}  Nb4 {[%clk 0:02:23]} 20. Qe4 {[%clk 0:01:20]}  Bd3 {[%clk 0:02:06]} 21. Qg4 {[%clk 0:01:08]}  Nc2+ {[%clk 0:02:04]} 22. Kd1 {[%clk 0:01:08]}  Nxa1 {[%clk 0:02:04]} 23. Ne5 {[%clk 0:01:07]}  Bf5 {[%clk 0:02:02]} 24. Qg3 {[%clk 0:01:07]}  Qc7 {[%clk 0:01:56]} 0-1


[Site "https://www.chess.com"]

[Event "Titled Tuesday Blitz April 18 Late 2023"]
[White "Jovic, Stanoje"]
[Black "Ward, Ieuan C"]
[WhiteFideId "905020"]
[BlackFideId "406627"]
[WhiteElo "2236"]
[BlackElo "2339"]
[Result "1-0"]
[Round "09"]
[TimeControl "180+2"]
[Date "2023.04.18"]
[WhiteClock "0:01:06"]
[BlackClock "0:00:23"]

1. c4 {[%clk 0:03:00]}  Nf6 {[%clk 0:02:58]} 2. g3 {[%clk 0:03:01]}  e6 {[%clk 0:02:54]} 3. Bg2 {[%clk 0:03:01]}  d5 {[%clk 0:02:55]} 4. Nf3 {[%clk 0:03:01]}  Be7 {[%clk 0:02:56]} 5. O-O {[%clk 0:03:01]}  O-O {[%clk 0:02:56]} 6. d4 {[%clk 0:03:01]}  dxc4 {[%clk 0:02:57]} 7. Ne5 {[%clk 0:03:01]}  Nc6 {[%clk 0:02:57]} 8. Bxc6 {[%clk 0:03:01]}  bxc6 {[%clk 0:02:58]} 9. Nxc6 {[%clk 0:03:01]}  Qe8 {[%clk 0:02:54]} 10. Nxe7+ {[%clk 0:03:01]}  Qxe7 {[%clk 0:02:54]} 11. Na3 {[%clk 0:03:02]}  Qb4 {[%clk 0:02:48]} 12. Qd2 {[%clk 0:02:47]}  Qxd2 {[%clk 0:02:39]} 13. Bxd2 {[%clk 0:02:44]}  Ba6 {[%clk 0:02:40]} 14. Rfc1 {[%clk 0:02:31]}  Rab8 {[%clk 0:02:28]} 15. Rab1 {[%clk 0:02:29]}  Ne4 {[%clk 0:02:26]} 16. Bf4 {[%clk 0:02:16]}  c3 {[%clk 0:02:11]} 17. bxc3 {[%clk 0:02:06]}  Rxb1 {[%clk 0:02:08]} 18. Nxb1 {[%clk 0:02:03]}  Bxe2 {[%clk 0:02:00]} 19. Bxc7 {[%clk 0:01:58]}  Rc8 {[%clk 0:01:59]} 20. Ba5 {[%clk 0:01:57]}  Bc4 {[%clk 0:01:35]} 21. Na3 {[%clk 0:01:41]}  Bxa2 {[%clk 0:01:33]} 22. c4 {[%clk 0:01:39]}  f5 {[%clk 0:01:17]} 23. f3 {[%clk 0:01:39]}  Ng5 {[%clk 0:01:13]} 24. Kf2 {[%clk 0:01:37]}  Rb8 {[%clk 0:01:11]} 25. Rc2 {[%clk 0:01:30]}  Bb1 {[%clk 0:00:58]} 26. Nxb1 {[%clk 0:01:30]}  Rxb1 {[%clk 0:00:59]} 27. c5 {[%clk 0:01:30]}  Nf7 {[%clk 0:00:53]} 28. Bc7 {[%clk 0:01:22]}  Kf8 {[%clk 0:00:51]} 29. c6 {[%clk 0:01:21]}  Ke8 {[%clk 0:00:49]} 30. Bf4 {[%clk 0:01:12]}  Kd8 {[%clk 0:00:46]} 31. h4 {[%clk 0:01:11]}  Kc8 {[%clk 0:00:43]} 32. Ra2 {[%clk 0:01:08]}  Nd8 {[%clk 0:00:38]} 33. Rxa7 {[%clk 0:01:08]}  Rb2+ {[%clk 0:00:37]} 34. Ke1 {[%clk 0:01:06]}  Rb1+ {[%clk 0:00:23]} 35. Kd2 {[%clk 0:01:06]} 1-0


[Site "https://www.chess.com"]

[Event "Titled Tuesday Blitz April 18 Late 2023"]
[White "Barria Santos, Jose Guilherme"]
[Black "ElenGajger"]
[WhiteFideId "1939300"]
[WhiteElo "2266"]
[BlackElo "2452"]
[Result "1-0"]
[Round "09"]
[TimeControl "180+2"]
[Date "2023.04.18"]
[WhiteClock "0:00:43"]
[BlackClock "0:00:10"]

1. e4 {[%clk 0:03:00]}  c5 {[%clk 0:02:59]} 2. Nf3 {[%clk 0:03:00]}  g6 {[%clk 0:02:58]} 3. d4 {[%clk 0:02:59]}  cxd4 {[%clk 0:02:58]} 4. Nxd4 {[%clk 0:03:00]}  Bg7 {[%clk 0:02:54]} 5. c4 {[%clk 0:02:59]}  Nc6 {[%clk 0:02:54]} 6. Be3 {[%clk 0:02:59]}  Nf6 {[%clk 0:02:54]} 7. Nc3 {[%clk 0:02:59]}  O-O {[%clk 0:02:53]} 8. Be2 {[%clk 0:02:44]}  d6 {[%clk 0:02:53]} 9. O-O {[%clk 0:02:42]}  Nd7 {[%clk 0:02:50]} 10. Qd2 {[%clk 0:02:35]}  a5 {[%clk 0:02:48]} 11. Ndb5 {[%clk 0:02:31]}  a4 {[%clk 0:02:46]} 12. Rac1 {[%clk 0:02:24]}  Qa5 {[%clk 0:02:42]} 13. f4 {[%clk 0:02:19]}  Nc5 {[%clk 0:02:35]} 14. e5 {[%clk 0:02:06]}  Nd7 {[%clk 0:01:25]} 15. exd6 {[%clk 0:02:02]}  exd6 {[%clk 0:01:26]} 16. Qxd6 {[%clk 0:01:55]}  Re8 {[%clk 0:01:15]} 17. Qd2 {[%clk 0:01:46]}  Nf6 {[%clk 0:01:11]} 18. Bf3 {[%clk 0:01:45]}  Be6 {[%clk 0:01:07]} 19. Nd6 {[%clk 0:01:29]}  Red8 {[%clk 0:01:03]} 20. Nxb7 {[%clk 0:01:18]}  Rxd2 {[%clk 0:01:01]} 21. Nxa5 {[%clk 0:01:19]}  Nxa5 {[%clk 0:00:54]} 22. Bxd2 {[%clk 0:01:17]}  Rd8 {[%clk 0:00:51]} 23. Rfd1 {[%clk 0:01:12]}  Nxc4 {[%clk 0:00:50]} 24. Be1 {[%clk 0:01:10]}  Rb8 {[%clk 0:00:37]} 25. Nxa4 {[%clk 0:01:07]}  h5 {[%clk 0:00:33]} 26. b3 {[%clk 0:01:05]}  Ne3 {[%clk 0:00:32]} 27. Rd3 {[%clk 0:01:03]}  Ned5 {[%clk 0:00:28]} 28. Bd2 {[%clk 0:01:01]}  Nb4 {[%clk 0:00:20]} 29. Bxb4 {[%clk 0:01:01]}  Rxb4 {[%clk 0:00:21]} 30. Nc5 {[%clk 0:00:58]}  Bf5 {[%clk 0:00:20]} 31. Rd8+ {[%clk 0:00:51]}  Kh7 {[%clk 0:00:20]} 32. a4 {[%clk 0:00:51]}  Rxf4 {[%clk 0:00:20]} 33. a5 {[%clk 0:00:51]}  Ng4 {[%clk 0:00:14]} 34. a6 {[%clk 0:00:50]}  Ne5 {[%clk 0:00:10]} 35. a7 {[%clk 0:00:48]}  Nxf3+ {[%clk 0:00:10]} 36. gxf3 {[%clk 0:00:48]}  Rd4 {[%clk 0:00:10]} 37. Rxd4 {[%clk 0:00:43]}  Bxd4+ {[%clk 0:00:10]} 38. Kg2 {[%clk 0:00:43]} 1-0


[Site "https://www.chess.com"]

[Event "Titled Tuesday Blitz April 18 Late 2023"]
[White "Spata, German"]
[Black "Vaglio Munoz, Jaime"]
[WhiteFideId "113026"]
[BlackFideId "6500145"]
[WhiteElo "2238"]
[BlackElo "2199"]
[Result "1-0"]
[Round "09"]
[TimeControl "180+2"]
[Date "2023.04.18"]
[WhiteClock "0:00:07"]
[BlackClock "0:00:06"]

1. e4 {[%clk 0:02:49]}  e6 {[%clk 0:03:00]} 2. d3 {[%clk 0:02:47]}  d5 {[%clk 0:02:59]} 3. Nd2 {[%clk 0:02:44]}  Nf6 {[%clk 0:02:59]} 4. Ngf3 {[%clk 0:02:41]}  dxe4 {[%clk 0:02:58]} 5. dxe4 {[%clk 0:02:41]}  Nbd7 {[%clk 0:02:49]} 6. Bc4 {[%clk 0:02:32]}  a6 {[%clk 0:02:46]} 7. a4 {[%clk 0:02:32]}  b6 {[%clk 0:02:44]} 8. O-O {[%clk 0:02:31]}  Bb7 {[%clk 0:02:43]} 9. Qe2 {[%clk 0:02:31]}  Nc5 {[%clk 0:02:38]} 10. Rd1 {[%clk 0:02:27]}  Qc8 {[%clk 0:02:34]} 11. e5 {[%clk 0:02:21]}  Nd5 {[%clk 0:02:33]} 12. Nb3 {[%clk 0:02:06]}  Nxb3 {[%clk 0:02:26]} 13. Bxb3 {[%clk 0:02:06]}  h6 {[%clk 0:02:24]} 14. c3 {[%clk 0:01:48]}  c5 {[%clk 0:02:20]} 15. Bc2 {[%clk 0:01:47]}  Be7 {[%clk 0:02:20]} 16. h4 {[%clk 0:01:40]}  Qc6 {[%clk 0:02:10]} 17. h5 {[%clk 0:01:40]}  Rd8 {[%clk 0:01:43]} 18. Be4 {[%clk 0:01:38]}  Qc7 {[%clk 0:01:42]} 19. Bd3 {[%clk 0:01:25]}  Qc6 {[%clk 0:01:33]} 20. Bxa6 {[%clk 0:01:14]}  Bxa6 {[%clk 0:01:23]} 21. Qxa6 {[%clk 0:01:13]}  Ra8 {[%clk 0:01:22]} 22. Qc4 {[%clk 0:01:08]}  O-O {[%clk 0:01:13]} 23. Qg4 {[%clk 0:01:08]}  Kh8 {[%clk 0:01:05]} 24. c4 {[%clk 0:00:56]}  Nb4 {[%clk 0:01:02]} 25. b3 {[%clk 0:00:53]}  Rad8 {[%clk 0:00:57]} 26. Bd2 {[%clk 0:00:39]}  Nc2 {[%clk 0:00:51]} 27. Rac1 {[%clk 0:00:36]}  Nd4 {[%clk 0:00:50]} 28. Nxd4 {[%clk 0:00:32]}  Rxd4 {[%clk 0:00:51]} 29. Qe2 {[%clk 0:00:30]}  Rfd8 {[%clk 0:00:51]} 30. Be3 {[%clk 0:00:30]}  R4d7 {[%clk 0:00:48]} 31. Rxd7 {[%clk 0:00:26]}  Qxd7 {[%clk 0:00:47]} 32. g3 {[%clk 0:00:21]}  Kg8 {[%clk 0:00:38]} 33. Rc2 {[%clk 0:00:20]}  Qc6 {[%clk 0:00:36]} 34. Rd2 {[%clk 0:00:18]}  Kf8 {[%clk 0:00:34]} 35. Rxd8+ {[%clk 0:00:18]}  Bxd8 {[%clk 0:00:35]} 36. Qd3 {[%clk 0:00:18]}  Be7 {[%clk 0:00:34]} 37. Qh7 {[%clk 0:00:18]}  Ke8 {[%clk 0:00:33]} 38. Qd3 {[%clk 0:00:16]}  Qf3 {[%clk 0:00:30]} 39. Qh7 {[%clk 0:00:13]}  Qxh5 {[%clk 0:00:29]} 40. Qxg7 {[%clk 0:00:13]}  Qd1+ {[%clk 0:00:23]} 41. Kg2 {[%clk 0:00:13]}  h5 {[%clk 0:00:22]} 42. Qh8+ {[%clk 0:00:13]}  Kd7 {[%clk 0:00:21]} 43. Qa8 {[%clk 0:00:11]}  Qxb3 {[%clk 0:00:20]} 44. Qb7+ {[%clk 0:00:11]}  Ke8 {[%clk 0:00:20]} 45. a5 {[%clk 0:00:11]}  Qxc4 {[%clk 0:00:19]} 46. axb6 {[%clk 0:00:11]}  Bd8 {[%clk 0:00:16]} 47. Qc6+ {[%clk 0:00:11]}  Ke7 {[%clk 0:00:16]} 48. Bxc5+ {[%clk 0:00:10]}  Qxc5 {[%clk 0:00:13]} 49. Qxc5+ {[%clk 0:00:10]}  Kd7 {[%clk 0:00:14]} 50. Qd6+ {[%clk 0:00:10]}  Kc8 {[%clk 0:00:14]} 51. Qc6+ {[%clk 0:00:10]}  Kb8 {[%clk 0:00:14]} 52. b7 {[%clk 0:00:10]}  Bc7 {[%clk 0:00:14]} 53. f4 {[%clk 0:00:09]}  h4 {[%clk 0:00:14]} 54. gxh4 {[%clk 0:00:09]}  f5 {[%clk 0:00:14]} 55. exf6 {[%clk 0:00:08]}  e5 {[%clk 0:00:13]} 56. f7 {[%clk 0:00:08]}  exf4 {[%clk 0:00:13]} 57. f8=Q+ {[%clk 0:00:08]}  Ka7 {[%clk 0:00:11]} 58. Qxc7 {[%clk 0:00:08]}  f3+ {[%clk 0:00:11]} 59. Kf1 {[%clk 0:00:08]}  Ka6 {[%clk 0:00:11]} 60. Qfc5 {[%clk 0:00:06]}  f2 {[%clk 0:00:06]} 61. Q7b6# {[%clk 0:00:07]} 1-0


[Site "https://www.chess.com"]

[Event "Titled Tuesday Blitz April 18 Late 2023"]
[White "Prieto Aranguren, Alain"]
[Black "Aggelis, Nikolaos"]
[WhiteFideId "2268906"]
[BlackFideId "4213220"]
[WhiteElo "2209"]
[BlackElo "2189"]
[Result "0-1"]
[Round "09"]
[TimeControl "180+2"]
[Date "2023.04.18"]
[WhiteClock "0:00:51"]
[BlackClock "0:00:58"]

1. d4 {[%clk 0:02:56]}  f5 {[%clk 0:02:59]} 2. Bg5 {[%clk 0:02:54]}  c6 {[%clk 0:02:45]} 3. Nc3 {[%clk 0:02:51]}  d5 {[%clk 0:02:45]} 4. e3 {[%clk 0:02:50]}  Nd7 {[%clk 0:02:38]} 5. h4 {[%clk 0:02:48]}  Ngf6 {[%clk 0:02:38]} 6. Nf3 {[%clk 0:02:45]}  e6 {[%clk 0:02:39]} 7. Ne5 {[%clk 0:02:44]}  Be7 {[%clk 0:02:37]} 8. f4 {[%clk 0:02:36]}  Nxe5 {[%clk 0:02:09]} 9. fxe5 {[%clk 0:02:36]}  Ng4 {[%clk 0:02:09]} 10. Bxe7 {[%clk 0:02:32]}  Qxe7 {[%clk 0:02:10]} 11. Qf3 {[%clk 0:02:28]}  O-O {[%clk 0:02:09]} 12. Qf4 {[%clk 0:02:25]}  b6 {[%clk 0:02:01]} 13. Be2 {[%clk 0:02:23]}  Nh6 {[%clk 0:01:58]} 14. O-O-O {[%clk 0:02:19]}  a5 {[%clk 0:01:59]} 15. Rdg1 {[%clk 0:02:18]}  Ba6 {[%clk 0:01:58]} 16. Bd1 {[%clk 0:02:15]}  b5 {[%clk 0:01:58]} 17. Qg5 {[%clk 0:02:08]}  Qxg5 {[%clk 0:01:48]} 18. hxg5 {[%clk 0:02:08]}  Ng4 {[%clk 0:01:49]} 19. Kd2 {[%clk 0:01:59]}  Nf2 {[%clk 0:01:45]} 20. Rh4 {[%clk 0:01:55]}  b4 {[%clk 0:01:45]} 21. Na4 {[%clk 0:01:48]}  Ne4+ {[%clk 0:01:45]} 22. Kc1 {[%clk 0:01:47]}  Nxg5 {[%clk 0:01:44]} 23. Nc5 {[%clk 0:01:45]}  Bc8 {[%clk 0:01:43]} 24. Rgh1 {[%clk 0:01:41]}  h6 {[%clk 0:01:43]} 25. Bh5 {[%clk 0:01:40]}  Ne4 {[%clk 0:01:32]} 26. Na4 {[%clk 0:01:31]}  Ba6 {[%clk 0:01:14]} 27. Bg6 {[%clk 0:01:30]}  Bb5 {[%clk 0:01:12]} 28. Nb6 {[%clk 0:01:25]}  Ra7 {[%clk 0:01:09]} 29. g4 {[%clk 0:01:12]}  fxg4 {[%clk 0:01:09]} 30. Bxe4 {[%clk 0:01:09]}  dxe4 {[%clk 0:01:08]} 31. b3 {[%clk 0:01:07]}  Be2 {[%clk 0:00:58]} 32. Nc4 {[%clk 0:01:03]}  Raf7 {[%clk 0:00:57]} 33. Nd6 {[%clk 0:01:01]}  Rf1+ {[%clk 0:00:58]} 34. Rxf1 {[%clk 0:01:02]}  Rxf1+ {[%clk 0:00:59]} 35. Kb2 {[%clk 0:01:02]}  g3 {[%clk 0:00:59]} 36. Nxe4 {[%clk 0:00:51]}  g2 {[%clk 0:00:58]} 0-1


[Site "https://www.chess.com"]

[Event "Titled Tuesday Blitz April 18 Late 2023"]
[White "Melikhov, Evgeny V."]
[Black "Harish, Neeraj"]
[WhiteFideId "4122046"]
[BlackFideId "30958130"]
[WhiteElo "2158"]
[BlackElo "1965"]
[Result "1/2-1/2"]
[Round "09"]
[TimeControl "180+2"]
[Date "2023.04.18"]
[WhiteClock "0:00:21"]
[BlackClock "0:00:11"]

1. d4 {[%clk 0:03:00]}  d5 {[%clk 0:02:55]} 2. c4 {[%clk 0:03:00]}  e6 {[%clk 0:02:55]} 3. Nc3 {[%clk 0:03:01]}  Nf6 {[%clk 0:02:55]} 4. cxd5 {[%clk 0:03:01]}  exd5 {[%clk 0:02:54]} 5. Bg5 {[%clk 0:03:01]}  Be7 {[%clk 0:02:54]} 6. e3 {[%clk 0:03:01]}  h6 {[%clk 0:02:52]} 7. Bh4 {[%clk 0:02:59]}  O-O {[%clk 0:02:49]} 8. Bd3 {[%clk 0:02:58]}  Re8 {[%clk 0:02:47]} 9. Nf3 {[%clk 0:02:50]}  c6 {[%clk 0:02:42]} 10. Qc2 {[%clk 0:02:48]}  Ne4 {[%clk 0:02:38]} 11. Bxe7 {[%clk 0:02:43]}  Qxe7 {[%clk 0:02:39]} 12. Bxe4 {[%clk 0:02:41]}  dxe4 {[%clk 0:02:38]} 13. Nd2 {[%clk 0:02:41]}  f5 {[%clk 0:02:31]} 14. Ne2 {[%clk 0:02:26]}  Be6 {[%clk 0:02:27]} 15. a3 {[%clk 0:02:18]}  Nd7 {[%clk 0:02:26]} 16. b4 {[%clk 0:02:10]}  Rac8 {[%clk 0:02:23]} 17. O-O {[%clk 0:01:56]}  Nb6 {[%clk 0:02:06]} 18. Qc5 {[%clk 0:01:54]}  Qxc5 {[%clk 0:01:40]} 19. bxc5 {[%clk 0:01:54]}  Nc4 {[%clk 0:01:38]} 20. Nxc4 {[%clk 0:01:46]}  Bxc4 {[%clk 0:01:38]} 21. Rfe1 {[%clk 0:01:46]}  b6 {[%clk 0:01:29]} 22. cxb6 {[%clk 0:01:35]}  axb6 {[%clk 0:01:30]} 23. Rac1 {[%clk 0:01:25]}  b5 {[%clk 0:01:12]} 24. a4 {[%clk 0:01:25]}  Ra8 {[%clk 0:01:08]} 25. axb5 {[%clk 0:01:24]}  Bxb5 {[%clk 0:01:09]} 26. Nc3 {[%clk 0:01:13]}  Bc4 {[%clk 0:01:06]} 27. Ra1 {[%clk 0:01:11]}  Kf7 {[%clk 0:01:01]} 28. Reb1 {[%clk 0:01:02]}  Kf6 {[%clk 0:00:52]} 29. g3 {[%clk 0:00:51]}  Rxa1 {[%clk 0:00:46]} 30. Rxa1 {[%clk 0:00:51]}  Rb8 {[%clk 0:00:47]} 31. Rc1 {[%clk 0:00:41]}  Bd3 {[%clk 0:00:37]} 32. Kg2 {[%clk 0:00:37]}  Rb2 {[%clk 0:00:29]} 33. h3 {[%clk 0:00:35]}  Kg5 {[%clk 0:00:21]} 34. Kg1 {[%clk 0:00:31]}  h5 {[%clk 0:00:18]} 35. Kg2 {[%clk 0:00:26]}  h4 {[%clk 0:00:18]} 36. Na4 {[%clk 0:00:23]}  Ra2 {[%clk 0:00:15]} 37. Nc3 {[%clk 0:00:22]}  Rb2 {[%clk 0:00:12]} 38. Na4 {[%clk 0:00:22]}  Ra2 {[%clk 0:00:13]} 39. Nc3 {[%clk 0:00:21]}  Rb2 {[%clk 0:00:11]} 1/2-1/2


[Site "https://www.chess.com"]

[Event "Titled Tuesday Blitz April 18 Late 2023"]
[White "Fajdetic, Hrvoje"]
[Black "Meunier-Pion, Jean"]
[WhiteFideId "14501945"]
[BlackFideId "20685327"]
[WhiteElo "2185"]
[BlackElo "2124"]
[Result "1-0"]
[Round "09"]
[TimeControl "180+2"]
[Date "2023.04.18"]
[WhiteClock "0:00:13"]
[BlackClock "0:01:04"]

1. d4 {[%clk 0:03:00]}  Nf6 {[%clk 0:02:57]} 2. Bf4 {[%clk 0:03:00]}  e6 {[%clk 0:02:57]} 3. e3 {[%clk 0:03:01]}  d5 {[%clk 0:02:57]} 4. Nf3 {[%clk 0:03:01]}  c5 {[%clk 0:02:57]} 5. Nc3 {[%clk 0:03:00]}  a6 {[%clk 0:02:56]} 6. Ne2 {[%clk 0:02:44]}  Nc6 {[%clk 0:02:54]} 7. c3 {[%clk 0:02:44]}  Be7 {[%clk 0:02:54]} 8. Ne5 {[%clk 0:02:43]}  O-O {[%clk 0:02:53]} 9. Ng3 {[%clk 0:02:41]}  Bd7 {[%clk 0:02:50]} 10. Bd3 {[%clk 0:02:41]}  b5 {[%clk 0:02:43]} 11. Nh5 {[%clk 0:02:40]}  g6 {[%clk 0:02:30]} 12. Nxf6+ {[%clk 0:02:19]}  Bxf6 {[%clk 0:02:31]} 13. Nxc6 {[%clk 0:02:18]}  Bxc6 {[%clk 0:02:32]} 14. Qf3 {[%clk 0:02:12]}  cxd4 {[%clk 0:02:22]} 15. exd4 {[%clk 0:02:11]}  Re8 {[%clk 0:02:22]} 16. Qg3 {[%clk 0:01:55]}  a5 {[%clk 0:02:05]} 17. h4 {[%clk 0:01:48]}  e5 {[%clk 0:02:04]} 18. dxe5 {[%clk 0:01:45]}  Qd6 {[%clk 0:01:48]} 19. O-O-O {[%clk 0:01:28]}  Bxe5 {[%clk 0:01:47]} 20. Bxe5 {[%clk 0:01:26]}  Rxe5 {[%clk 0:01:47]} 21. h5 {[%clk 0:01:13]}  b4 {[%clk 0:01:45]} 22. hxg6 {[%clk 0:01:09]}  bxc3 {[%clk 0:01:38]} 23. gxf7+ {[%clk 0:00:34]}  Kf8 {[%clk 0:01:35]} 24. Rxh7 {[%clk 0:00:24]}  cxb2+ {[%clk 0:01:34]} 25. Kb1 {[%clk 0:00:23]}  Ke7 {[%clk 0:01:07]} 26. Qh4+ {[%clk 0:00:14]}  Qf6 {[%clk 0:01:04]} 27. f8=Q+ {[%clk 0:00:13]}  Kxf8 {[%clk 0:01:03]} 28. Qxf6+ {[%clk 0:00:13]}  Kg8 {[%clk 0:01:04]} 29. Qg7# {[%clk 0:00:13]} 1-0


[Site "https://www.chess.com"]

[Event "Titled Tuesday Blitz April 18 Late 2023"]
[White "Winkels, Marcel"]
[Black "Seletsky, Grigory"]
[WhiteFideId "1003887"]
[BlackFideId "14112191"]
[WhiteElo "1900"]
[BlackElo "2490"]
[Result "0-1"]
[Round "09"]
[TimeControl "180+2"]
[Date "2023.04.18"]
[WhiteClock "0:00:01"]
[BlackClock "0:00:13"]

1. d4 {[%clk 0:03:00]}  c5 {[%clk 0:02:59]} 2. Nc3 {[%clk 0:03:01]}  cxd4 {[%clk 0:02:59]} 3. Qxd4 {[%clk 0:03:01]}  Nc6 {[%clk 0:02:59]} 4. Qh4 {[%clk 0:03:01]}  d5 {[%clk 0:02:57]} 5. Bf4 {[%clk 0:02:54]}  d4 {[%clk 0:02:53]} 6. Ne4 {[%clk 0:02:26]}  Qa5+ {[%clk 0:02:45]} 7. Bd2 {[%clk 0:02:24]}  Qd5 {[%clk 0:02:43]} 8. Nf3 {[%clk 0:02:14]}  e5 {[%clk 0:02:41]} 9. e3 {[%clk 0:02:02]}  f5 {[%clk 0:02:29]} 10. Ng3 {[%clk 0:01:55]}  Be7 {[%clk 0:02:26]} 11. Qh3 {[%clk 0:01:29]}  e4 {[%clk 0:02:13]} 12. Nxd4 {[%clk 0:01:07]}  Nxd4 {[%clk 0:02:11]} 13. exd4 {[%clk 0:01:07]}  Nf6 {[%clk 0:01:52]} 14. c4 {[%clk 0:01:02]}  Qxd4 {[%clk 0:01:48]} 15. Bc3 {[%clk 0:01:00]}  Bb4 {[%clk 0:01:27]} 16. Ne2 {[%clk 0:00:49]}  Bxc3+ {[%clk 0:01:25]} 17. Nxc3 {[%clk 0:00:47]}  f4 {[%clk 0:01:07]} 18. Qh4 {[%clk 0:00:42]}  e3 {[%clk 0:01:00]} 19. Rd1 {[%clk 0:00:35]}  Qe5 {[%clk 0:00:54]} 20. Be2 {[%clk 0:00:23]}  O-O {[%clk 0:00:44]} 21. O-O {[%clk 0:00:22]}  g5 {[%clk 0:00:35]} 22. Qh6 {[%clk 0:00:19]}  Bg4 {[%clk 0:00:20]} 23. Bxg4 {[%clk 0:00:11]}  Nxg4 {[%clk 0:00:20]} 24. Qd6 {[%clk 0:00:09]}  e2 {[%clk 0:00:16]} 25. Qxe5 {[%clk 0:00:04]}  exf1=Q+ {[%clk 0:00:15]} 26. Kxf1 {[%clk 0:00:03]}  Nxe5 {[%clk 0:00:16]} 27. Rd5 {[%clk 0:00:02]}  Rfe8 {[%clk 0:00:15]} 28. Ne4 {[%clk 0:00:01]}  h6 {[%clk 0:00:14]} 29. Nf6+ {[%clk 0:00:01]}  Kg7 {[%clk 0:00:14]} 30. Nxe8+ {[%clk 0:00:01]}  Rxe8 {[%clk 0:00:14]} 31. f3 {[%clk 0:00:02]}  Kf6 {[%clk 0:00:14]} 32. b3 {[%clk 0:00:02]}  Re7 {[%clk 0:00:14]} 33. Rd6+ {[%clk 0:00:02]}  Kg7 {[%clk 0:00:13]} 34. Rd5 {[%clk 0:00:01]}  Ng6 {[%clk 0:00:13]} 0-1


[Site "https://www.chess.com"]